bitfinex/quotes_SOLUSD_20250829
["timestamp","ask_amount","ask_price","bid_price","bid_amount"]
[1756433211756,0.06,214.68,214.67,72.27713068]
[1756433212254,0.06,214.68,214.67,65.7476799]
[1756433212452,0.06,214.68,214.67,58.27713068]
[1756433212680,0.06,214.68,214.67,26.0]
[1756433213052,0.06,214.68,214.67,26.28432314]
[1756433213252,0.06,214.68,214.67,51.74768068]
[1756433215004,0.06,214.68,214.67,90.02768068]
[1756433215293,0.06,214.68,214.67,89.34768068]
[1756433215592,0.06,214.68,214.67,90.02768068]
[1756433215971,0.06,214.68,214.67,82.8182299]
[1756433216273,0.06,214.68,214.67,89.34768068]
[1756433217468,7.25945078,214.68,214.65,6.529451]
[1756433217670,6.52945078,214.66,214.6,6.52945078]
[1756433218186,6.52945078,214.66,214.59,42.70930632]
[1756433218394,6.52945078,214.66,214.6,11.47360235]
[1756433218565,0.67,214.67,214.6,11.18927921]
[1756433218878,7.19945078,214.67,214.61,6.52945078]
[1756433219197,0.06,214.68,214.64,6.52945078]
[1756433219703,0.06,214.68,214.65,6.52945078]
[1756433219869,0.06,214.68,214.66,6.52945078]
[1756433220264,0.06,214.68,214.66,0.28432314]
[1756433220480,0.73,214.68,214.64,6.52945078]
[1756433220681,0.06,214.68,214.67,46.40936793]
[1756433220881,0.06,214.68,214.67,47.09936793]
[1756433221269,0.06,214.68,214.67,53.62881893]
[1756433222082,0.06,214.68,214.67,32.81377392]
[1756433222311,0.73,214.68,214.64,26.0]
[1756433222509,0.06,214.68,214.64,32.52945078]
[1756433222711,0.06,214.68,214.67,6.67161235]
[1756433222919,0.06,214.68,214.67,6.81377392]
[1756433223281,0.06,214.68,214.67,7.50377392]
[1756433224298,0.06,214.68,214.67,12.16208667]
[1756433224494,0.06,214.68,214.67,0.28432314]
[1756433225513,0.06,214.68,214.65,6.52945078]
[1756433225682,0.06,214.68,214.64,70.86945078]
[1756433225887,0.73,214.68,214.64,26.03]
[1756433226190,0.67,214.67,214.64,26.03]
[1756433226593,0.06,214.68,214.64,26.03]
[1756433226795,0.73,214.68,214.64,26.03]
[1756433227013,0.73,214.68,214.64,30.68885059]
[1756433227389,0.06,214.68,214.64,30.68885059]
[1756433227601,0.06,214.68,214.66,6.52945078]
[1756433228592,0.06,214.68,214.64,37.21836918]
[1756433229320,6.52945078,214.65,214.64,0.03]
[1756433229506,7.19945078,214.65,214.64,0.03]
[1756433229702,7.19945078,214.65,214.61,0.03]
[1756433229914,6.52945078,214.62,214.61,0.03]
[1756433230304,7.19945078,214.62,214.61,0.03]
[1756433231021,11.85884878,214.62,214.61,0.03]
[1756433231714,7.19945078,214.62,214.61,0.03]
[1756433231889,0.67,214.62,214.61,0.03]
[1756433232090,7.19945078,214.62,214.61,0.03]
[1756433232518,11.85884878,214.62,214.61,0.03]
[1756433233920,7.19945078,214.62,214.61,0.03]
[1756433235303,0.67,214.7,214.61,0.72]
[1756433235508,6.58945078,214.68,214.62,6.52945078]
[1756433235911,6.52945078,214.66,214.61,1.00432314]
[1756433236112,6.52945078,214.67,214.61,12.19337946]
[1756433236895,6.52945078,214.66,214.61,0.72]
[1756433237095,6.52945078,214.67,214.62,0.69]
[1756433237324,6.52945078,214.67,214.63,0.69]
[1756433237628,0.06,214.68,214.67,13.87991715]
[1756433237926,0.67,214.81,214.73,0.28432314]
[1756433238105,6.52945078,214.8,214.74,6.52945078]
[1756433238614,6.52945078,214.77,214.72,0.28432314]
[1756433238817,6.52945078,214.8,214.73,7.21945078]
[1756433239128,6.52945078,214.79,214.73,7.21945078]
[1756433239630,0.67,214.82,214.73,0.69]
[1756433239821,6.52945078,214.79,214.73,5.34690173]
[1756433240131,6.52945078,214.78,214.73,5.34690173]
[1756433240506,6.52945078,214.79,214.73,5.34690173]
[1756433241412,6.52945078,214.79,214.73,0.69]
[1756433241611,6.52945078,214.79,214.73,7.50377392]
[1756433241814,6.52945078,214.79,214.73,12.16074157]
[1756433242018,6.52945078,214.8,214.74,6.52945078]
[1756433242411,6.52945078,214.79,214.73,0.28432314]
[1756433242618,6.52945078,214.78,214.73,0.28432314]
[1756433243544,6.52945078,214.79,214.73,6.81377392]
[1756433243732,5.32556003,214.8,214.73,6.81377392]
[1756433243918,5.32556003,214.8,214.72,4.65720323]
[1756433243919,6.52945078,214.77,214.72,0.28432314]
[1756433244124,6.52945078,214.76,214.71,6.52945078]
[1756433244520,6.52945078,214.76,214.7,32.52945078]
[1756433244719,0.67,214.75,214.68,0.69]
[1756433244956,0.67,214.75,214.66,7.21945078]
[1756433245118,64.14,214.77,214.66,7.21945078]
[1756433245119,0.67,214.74,214.66,0.69]
[1756433245321,5.32699245,214.74,214.66,5.34852946]
[1756433245747,4.65699245,214.74,214.63,0.03]
[1756433245916,6.52945078,214.69,214.63,7.24945078]
[1756433246121,6.52945078,214.7,214.64,6.52945078]
[1756433246541,6.52945078,214.68,214.63,0.03]
[1756433246916,6.52945078,214.69,214.63,7.24945078]
[1756433247219,6.52945078,214.68,214.63,0.03]
[1756433247442,5.32785168,214.7,214.63,0.72]
[1756433247757,6.52945078,214.69,214.63,11.9085387]
[1756433248123,6.52945078,214.68,214.63,5.37908792]
[1756433248828,6.52945078,214.67,214.63,0.03]
[1756433249635,6.52945078,214.67,214.63,0.72]
[1756433250033,6.52945078,214.64,214.63,0.03]
[1756433251147,6.52945078,214.67,214.63,0.03]
[1756433251324,6.52945078,214.68,214.63,7.25945078]
[1756433251524,6.52945078,214.7,214.64,7.22945078]
[1756433251723,6.52945078,214.69,214.64,0.7]
[1756433252024,6.52945078,214.68,214.64,0.7]
[1756433252742,6.52945078,214.69,214.64,0.7]
[1756433252923,0.7,214.71,214.64,7.22945078]
[1756433253125,6.52945078,214.68,214.63,0.03]
[1756433253340,0.7,214.7,214.63,0.03]
[1756433253341,6.52945078,214.69,214.63,7.25945078]
[1756433253650,6.52945078,214.69,214.63,11.91852334]
[1756433253852,38.04,214.76,214.66,0.28432314]
[1756433254031,6.52945078,214.73,214.67,6.52945078]
[1756433254531,7.22945078,214.72,214.66,6.52945078]
[1756433254928,7.22945078,214.72,214.67,4.65831275]
[1756433255337,6.52945078,214.73,214.67,11.88776353]
[1756433255737,0.06,214.79,214.72,6.52945078]
[1756433256067,0.06,214.79,214.75,6.52945078]
[1756433256451,6.58945078,214.79,214.73,0.7]
[1756433256826,0.06,214.79,214.73,0.7]
[1756433257025,0.06,214.79,214.74,4.65679426]
[1756433257230,0.06,214.79,214.74,5.35679426]
[1756433257638,0.06,214.79,214.75,0.7]
[1756433258051,6.58945078,214.79,214.72,5.64155115]
[1756433258554,6.52945078,214.75,214.71,6.529451]
[1756433258940,6.52945078,214.75,214.71,0.7]
[1756433259530,6.52945078,214.77,214.72,0.7]
[1756433259736,0.06,214.79,214.73,7.22945078]
[1756433259945,0.06,214.79,214.75,6.52945078]
[1756433260254,0.06,214.79,214.76,7.22945078]
[1756433260862,0.06,214.79,214.77,0.7]
[1756433261046,0.06,214.79,214.77,5.35606873]
[1756433261245,0.06,214.79,214.76,87.22945078]
[1756433261449,0.06,214.79,214.76,87.92945078]
[1756433261643,0.06,214.79,214.76,87.22945078]
[1756433261846,0.06,214.79,214.77,0.7]
[1756433262243,0.06,214.79,214.78,20.82504479]
[1756433262550,0.06,214.79,214.78,25.44973292]
[1756433262951,0.06,214.79,214.78,30.10565991]
[1756433263553,0.06,214.79,214.78,56.10565991]
[1756433263759,0.06,214.79,214.78,56.38998305]
[1756433264147,0.06,214.79,214.78,51.73405606]
[1756433264355,0.06,214.79,214.78,56.38998305]
[1756433264554,0.06,214.79,214.78,62.91943405]
[1756433265142,0.06,214.79,214.78,76.91943405]
[1756433265338,0.06,214.79,214.78,70.38998305]
[1756433265556,0.06,214.79,214.78,77.61943405]
[1756433266649,0.06,214.79,214.78,115.57943405]
[1756433267252,0.06,214.79,214.78,109.04998327]
[1756433267454,0.06,214.79,214.78,115.57943405]
[1756433268772,0.06,214.79,214.78,76.10970091]
[1756433268972,0.06,214.79,214.78,144.92432314]
[1756433269174,0.06,214.79,214.78,151.45377392]
[1756433269686,0.06,214.79,214.76,88.629451]
[1756433269875,0.06,214.79,214.76,37.94]
[1756433270082,0.06,214.79,214.76,44.46945078]
[1756433270573,0.06,214.79,214.76,45.16945078]
[1756433270781,0.06,214.79,214.76,49.82571132]
[1756433270972,0.06,214.79,214.76,44.46945078]
[1756433271281,0.06,214.79,214.76,37.94]
[1756433272154,0.06,214.79,214.76,4.65627829]
[1756433272350,0.06,214.79,214.77,0.7]
[1756433272555,0.06,214.79,214.76,11.18572907]
[1756433272859,0.06,214.79,214.78,20.40936793]
[1756433273060,0.06,214.79,214.78,58.34936793]
[1756433273262,0.06,214.79,214.78,63.70529492]
[1756433274163,0.06,214.79,214.78,144.40529492]
[1756433276687,0.06,214.79,214.78,106.46529492]
[1756433276856,0.06,214.79,214.78,133.21991715]
[1756433277054,0.06,214.79,214.78,138.76504479]
[1756433277255,0.06,214.79,214.78,139.46504479]
[1756433277456,0.06,214.79,214.78,118.64]
[1756433277678,0.06,214.79,214.78,87.22945078]
[1756433277855,0.06,214.79,214.78,125.31161235]
[1756433278057,0.06,214.79,214.78,129.96753934]
[1756433278252,0.06,214.79,214.77,14.0]
[1756433278452,0.76,214.79,214.72,13.59559401]
[1756433278656,0.76,214.79,214.74,6.52945078]
[1756433278961,0.76,214.79,214.75,0.28432314]
[1756433279158,0.06,214.79,214.76,6.52945078]
[1756433279570,0.06,214.79,214.77,6.52945078]
[1756433279770,0.06,214.79,214.76,6.81377392]
[1756433280363,6.52945078,214.77,214.71,13.59559401]
[1756433280571,6.52945078,214.77,214.72,37.94]
[1756433280785,7.23945078,214.77,214.72,37.94]
[1756433281381,11.24526124,214.79,214.72,58.46945078]
[1756433281584,0.06,214.79,214.74,6.52945078]
[1756433281771,4.71576577,214.79,214.74,44.46945078]
[1756433281971,11.95521655,214.79,214.74,37.94]
[1756433282277,7.23945078,214.78,214.74,37.94]
[1756433282665,7.23945078,214.78,214.72,58.46945078]
[1756433283367,4.65614378,214.77,214.72,51.94]
[1756433283586,4.65614378,214.77,214.72,52.66]
[1756433283783,11.89537929,214.78,214.72,51.94]
[1756433283963,5.36592851,214.78,214.72,51.94]
[1756433284566,5.36592851,214.78,214.72,37.94]
[1756433285181,4.65592851,214.78,214.72,37.94]
[1756433285562,0.06,214.79,214.72,43.31713273]
[1756433285766,6.58945078,214.79,214.72,43.31713273]
[1756433286065,0.06,214.79,214.72,43.31713273]
[1756433286296,0.06,214.79,214.73,0.72]
[1756433287294,0.06,214.79,214.73,38.66]
[1756433288283,0.06,214.79,214.76,6.52945078]
[1756433288781,0.06,214.79,214.77,0.72]
[1756433288982,0.06,214.79,214.76,6.52945078]
[1756433289182,0.06,214.79,214.75,6.52945078]
[1756433289388,0.06,214.79,214.76,0.72]
[1756433289587,0.06,214.79,214.76,7.24945078]
[1756433290183,0.06,214.79,214.75,6.52945078]
[1756433290379,0.06,214.79,214.75,7.24945078]
[1756433290565,6.52945078,214.76,214.7,0.72]
[1756433290770,6.52945078,214.73,214.7,6.529451]
[1756433290970,7.23945078,214.73,214.68,13.59559401]
[1756433291292,7.23945078,214.72,214.67,37.94]
[1756433291494,0.71,214.72,214.67,37.94]
[1756433291665,4.65729477,214.72,214.67,44.46945078]
[1756433291872,4.65729477,214.72,214.68,0.72]
[1756433293390,4.65729477,214.72,214.66,7.24945078]
[1756433293606,4.65729477,214.72,214.66,7.53377392]
[1756433293974,4.65701113,214.73,214.66,7.53377392]
[1756433294284,4.65701113,214.73,214.67,6.52945078]
[1756433294803,4.65701113,214.73,214.66,21.53377392]
[1756433295506,6.52945078,214.68,214.65,0.03]
[1756433295707,0.71,214.72,214.65,0.03]
[1756433295708,6.52945078,214.66,214.65,0.03]
[1756433295880,6.52945078,214.67,214.65,0.03]
[1756433296078,6.52945078,214.68,214.65,0.03]
[1756433296277,6.52945078,214.67,214.65,0.03]
[1756433296896,6.52945078,214.66,214.65,0.03]
[1756433297097,7.23945078,214.66,214.65,0.03]
[1756433297284,11.89798054,214.66,214.65,0.03]
[1756433299896,49.83798054,214.66,214.65,0.03]
[1756433300587,69.96302533,214.66,214.64,1e-08]
[1756433300802,13.05890156,214.65,214.64,1e-08]
[1756433301009,13.59559401,214.64,214.63,1e-08]
[1756433301301,13.59559401,214.64,214.61,0.03]
[1756433301302,44.25499201,214.62,214.61,0.03]
[1756433301492,50.78444279,214.62,214.61,0.03]
[1756433301693,51.49444279,214.62,214.6,0.03]
[1756433301897,7.23945078,214.61,214.6,0.03]
[1756433302205,6.52945078,214.62,214.6,0.03]
[1756433302710,6.52945078,214.61,214.6,0.03]
[1756433303407,11.89906589,214.61,214.6,0.03]
[1756433305307,49.83906589,214.61,214.6,0.03]
[1756433306019,39.59559401,214.6,214.54,0.03]
[1756433306188,46.12504479,214.6,214.54,0.03]
[1756433306393,46.83504479,214.6,214.54,0.03]
[1756433306785,26.71,214.6,214.54,0.03]
[1756433306992,71.17945078,214.6,214.54,0.03]
[1756433307295,75.83928302,214.6,214.54,0.03]
[1756433308625,37.89928302,214.6,214.54,0.03]
[1756433308812,32.52945078,214.6,214.57,0.72]
[1756433309031,75.12928302,214.6,214.57,0.72]
[1756433309310,49.12928302,214.6,214.57,0.72]
[1756433309898,6.52945078,214.6,214.57,0.72]
[1756433310707,42.59962825,214.61,214.57,0.72]
[1756433310905,6.52945078,214.6,214.57,0.72]
[1756433311309,11.18928302,214.6,214.57,0.72]
[1756433311815,11.18928302,214.6,214.55,0.69]
[1756433312020,44.46945078,214.6,214.54,0.03]
[1756433312221,49.12928302,214.6,214.54,0.03]
[1756433312424,49.77928302,214.6,214.54,0.03]
[1756433313613,11.83928302,214.6,214.54,0.03]
[1756433313820,49.12928302,214.6,214.54,0.03]
[1756433314011,49.12928302,214.6,214.55,0.69]
[1756433314207,37.94,214.6,214.54,0.03]
[1756433314413,44.46945078,214.6,214.57,0.69]
[1756433314926,44.46945078,214.61,214.59,0.72]
[1756433315124,44.46945078,214.61,214.6,0.69]
[1756433315125,6.52945078,214.61,214.6,0.69]
[1756433315307,37.94,214.61,214.6,0.69]
[1756433315507,44.46945078,214.62,214.6,0.69]
[1756433315912,44.46945078,214.62,214.59,0.03]
[1756433316105,44.46945078,214.62,214.61,0.69]
[1756433317023,44.46945078,214.62,214.59,0.72]
[1756433317215,44.46945078,214.62,214.6,0.69]
[1756433317617,6.52945078,214.62,214.61,0.69]
[1756433317803,44.46945078,214.65,214.61,0.69]
[1756433318004,44.46945078,214.65,214.62,0.69]
[1756433318213,44.46945078,214.65,214.63,0.69]
[1756433318417,37.94,214.65,214.63,0.69]
[1756433318615,37.94,214.66,214.64,0.69]
[1756433318812,37.94,214.66,214.65,0.69]
[1756433319014,37.94,214.66,214.61,11.18898109]
[1756433319230,6.52945078,214.65,214.62,0.69]
[1756433319527,0.06,214.62,214.6,0.69]
[1756433319706,0.06,214.62,214.61,0.69]
[1756433325826,0.06,214.62,214.59,0.03]
[1756433325827,44.50945078,214.62,214.59,0.03]
[1756433326018,6.52945078,214.6,214.59,0.03]
[1756433329611,44.44945078,214.6,214.59,0.03]
[1756433330012,37.92,214.6,214.59,0.03]
[1756433330213,44.44945078,214.6,214.59,0.03]
[1756433330435,0.06,214.62,214.61,26.0]
[1756433330639,0.06,214.62,214.61,33.21945078]
[1756433330913,0.06,214.62,214.61,47.09936793]
[1756433331340,0.06,214.62,214.61,127.79936793]
[1756433331522,0.06,214.62,214.61,47.09936793]
[1756433331720,0.06,214.62,214.61,40.56991715]
[1756433331923,0.06,214.62,214.61,127.79936793]
[1756433332123,0.06,214.62,214.61,132.45898304]
[1756433333519,0.06,214.62,214.61,146.45898304]
[1756433334121,0.06,214.62,214.61,148.32670204]
[1756433334420,0.06,214.62,214.61,146.45898304]
[1756433336847,0.06,214.62,214.61,148.32670204]
[1756433337927,0.06,214.62,214.61,65.75898304]
[1756433339425,0.06,214.62,214.61,67.62670204]
[1756433340621,0.06,214.62,214.61,65.75898304]
[1756433340934,0.06,214.62,214.61,105.50670204]
[1756433341329,0.06,214.62,214.61,103.21575283]
[1756433342047,0.06,214.62,214.61,101.34803383]
[1756433342626,0.06,214.62,214.61,97.10953226]
[1756433342827,0.06,214.62,214.61,87.34803383]
[1756433343646,0.06,214.62,214.61,26.0]
[1756433343848,5.01850157,214.62,214.59,0.03]
[1756433344024,4.23850157,214.6,214.59,0.03]
[1756433344428,0.72,214.6,214.59,0.03]
[1756433344847,4.29850157,214.62,214.59,0.03]
[1756433345031,4.23850157,214.61,214.59,0.03]
[1756433345231,4.23850157,214.6,214.59,0.03]
[1756433345737,4.95850157,214.6,214.59,0.03]
[1756433348541,9.61833381,214.6,214.59,0.03]
[1756433351337,4.95850157,214.6,214.59,0.03]
[1756433351531,0.06,214.62,214.59,0.03]
[1756433351731,37.86,214.61,214.59,0.03]
[1756433352133,42.09850157,214.61,214.59,0.03]
[1756433352333,4.95850157,214.6,214.59,0.03]
[1756433353351,9.61833381,214.6,214.59,0.03]
[1756433355560,26.0,214.57,214.56,0.03]
[1756433355757,68.09850157,214.57,214.56,0.03]
[1756433355945,68.81850157,214.57,214.56,0.03]
[1756433357766,73.47898532,214.57,214.56,0.03]
[1756433360067,69.24048375,214.57,214.56,0.03]
[1756433360265,73.47898532,214.57,214.56,0.03]
[1756433360656,72.73898532,214.57,214.56,0.03]
[1756433361755,56.9527704,214.62,214.56,4.96850157]
[1756433361756,0.06,214.62,214.56,4.96850157]
[1756433362056,4.23850157,214.61,214.57,0.7]
[1756433362556,37.84,214.6,214.58,0.7]
[1756433362761,37.84,214.6,214.59,0.7]
[1756433363956,0.06,214.62,214.59,0.7]
[1756433364154,0.06,214.62,214.6,4.23850157]
[1756433364564,0.06,214.62,214.61,4.93850157]
[1756433364752,0.06,214.62,214.61,35.59811668]
[1756433365067,0.06,214.62,214.61,42.82611068]
[1756433366855,0.06,214.62,214.61,43.11043382]
[1756433370191,0.06,214.62,214.61,56.70602783]
[1756433370659,0.06,214.62,214.61,137.40602783]
[1756433370980,0.06,214.62,214.61,151.40602783]
[1756433374255,0.06,214.65,214.64,39.59559401]
[1756433374481,0.06,214.65,214.64,81.91841872]
[1756433374671,0.06,214.65,214.64,82.58841872]
[1756433376479,0.06,214.65,214.64,87.24738256]
[1756433377378,0.06,214.65,214.64,101.24738256]
[1756433377682,0.06,214.65,214.64,101.22738256]
[1756433378069,0.06,214.67,214.66,13.87991715]
[1756433378268,0.06,214.67,214.66,94.51991715]
[1756433378467,0.06,214.67,214.66,95.18991715]
[1756433378672,0.06,214.67,214.66,104.08694848]
[1756433379070,0.06,214.67,214.66,141.86694848]
[1756433379788,0.06,214.67,214.66,155.86960948]
[1756433380199,0.06,214.67,214.66,118.08960948]
[1756433380500,0.06,214.67,214.66,155.86960948]
[1756433381386,0.06,214.67,214.66,169.86960948]
[1756433382673,0.76,214.78,214.7,13.87991715]
[1756433382895,0.76,214.78,214.75,30.23850157]
[1756433383569,0.76,214.78,214.75,34.89496897]
[1756433383810,0.06,214.78,214.76,4.23850157]
[1756433383982,0.06,214.78,214.77,4.23850157]
[1756433384683,0.06,214.78,214.76,103.72692072]
[1756433384891,0.06,214.78,214.76,103.05692072]
[1756433385087,0.06,214.78,214.76,98.75841872]
[1756433385285,0.06,214.78,214.76,100.62491672]
[1756433385796,0.06,214.78,214.76,114.62491672]
[1756433386799,0.06,214.78,214.76,100.62491672]
[1756433388000,0.06,214.78,214.76,105.28123206]
[1756433388903,0.06,214.78,214.76,100.62491672]
[1756433389098,0.06,214.78,214.76,96.38641515]
[1756433389396,4.93850157,214.77,214.76,1.866498]
[1756433389803,4.93850157,214.77,214.7,44.25325087]
[1756433389980,4.93850157,214.76,214.7,48.49175244]
[1756433390391,4.23850157,214.74,214.7,13.59559401]
[1756433390593,0.7,214.73,214.7,13.59559401]
[1756433390800,0.7,214.73,214.7,17.83409558]
[1756433391080,0.7,214.73,214.7,4.23850157]
[1756433392297,4.65672176,214.75,214.7,4.23850157]
[1756433392486,0.7,214.74,214.7,4.23850157]
[1756433393983,4.65672176,214.75,214.7,4.23850157]
[1756433394182,0.7,214.74,214.7,80.64]
[1756433394385,4.65672176,214.75,214.7,84.87850157]
[1756433394598,0.7,214.74,214.7,80.64]
[1756433394802,5.35687312,214.74,214.7,84.87850157]
[1756433395509,0.7,214.74,214.7,84.87850157]
[1756433395691,0.06,214.78,214.71,4.90850157]
[1756433395692,4.65633065,214.77,214.71,4.90850157]
[1756433395900,4.65633065,214.77,214.72,4.23850157]
[1756433396105,5.35633065,214.77,214.72,4.90850157]
[1756433396412,0.06,214.78,214.73,4.23850157]
[1756433396588,4.71596227,214.78,214.75,4.23850157]
[1756433396789,0.76,214.78,214.74,4.23850157]
[1756433397493,0.76,214.78,214.73,4.90850157]
[1756433397908,4.23850157,214.76,214.71,4.23850157]
[1756433398205,0.7,214.75,214.71,26.0]
[1756433398407,0.7,214.74,214.68,19.44239977]
[1756433398601,0.06,214.78,214.69,4.23850157]
[1756433398802,9.59497869,214.76,214.7,4.23850157]
[1756433399009,5.35647712,214.76,214.71,4.23850157]
[1756433399206,0.7,214.75,214.7,4.23850157]
[1756433399410,0.7,214.75,214.69,0.67]
[1756433399605,0.7,214.75,214.7,4.23850157]
[1756433399810,0.7,214.75,214.7,4.90850157]
[1756433400216,9.59527624,214.75,214.7,0.67]
[1756433401014,5.35677467,214.75,214.7,4.90850157]
[1756433401317,0.68,214.74,214.7,4.90850157]
[1756433402313,5.33680962,214.74,214.7,4.90850157]
[1756433402601,8.89509816,214.75,214.7,4.90850157]
[1756433403001,5.33659659,214.75,214.71,0.66]
[1756433403217,0.06,214.78,214.75,26.0]
[1756433403397,0.06,214.78,214.77,18.11841872]
[1756433403598,0.06,214.78,214.77,44.11841872]
[1756433403813,0.06,214.78,214.77,82.47841872]
[1756433404318,0.06,214.78,214.77,44.77841872]
[1756433404706,0.06,214.78,214.77,49.4345625]
[1756433404907,0.06,214.78,214.77,27.866325]
[1756433405113,0.06,214.78,214.77,30.89850157]
[1756433405634,0.74,214.78,214.76,1.866499]
[1756433405803,0.74,214.78,214.74,84.93850157]
[1756433406325,0.06,214.78,214.77,4.23850157]
[1756433406719,0.06,214.78,214.77,82.17409558]
[1756433406906,0.06,214.78,214.77,82.92403309]
[1756433407611,0.06,214.78,214.77,84.79009709]
[1756433408220,0.06,214.78,214.77,89.44624087]
[1756433408416,0.06,214.79,214.78,13.87991715]
[1756433408633,0.06,214.79,214.78,18.77841872]
[1756433409136,0.06,214.79,214.78,56.45841872]
[1756433410314,0.06,214.79,214.78,61.11434571]
[1756433410511,0.06,214.79,214.78,75.11434571]
[1756433411926,0.06,214.81,214.78,75.11434571]
[1756433411927,0.06,214.81,214.8,44.11841872]
[1756433412232,0.06,214.81,214.8,81.77841872]
[1756433412429,0.06,214.81,214.8,87.0939122]
[1756433414318,4.23850157,215.01,214.87,26.0]
[1756433414630,0.68,214.99,214.95,4.23850157]
[1756433416117,0.68,214.99,214.95,30.23850157]
[1756433416640,0.78,214.96,214.93,4.23850157]
[1756433416931,0.68,214.95,214.93,4.23850157]
[1756433417330,0.1,214.96,214.93,6.50304142]
[1756433417516,0.78,214.96,214.93,6.50304142]
[1756433418110,0.78,214.96,214.92,32.50304142]
[1756433418334,0.68,214.95,214.92,32.50304142]
[1756433418536,0.68,214.95,214.93,6.50304142]
[1756433418737,0.1,214.96,214.93,6.50304142]
[1756433418945,0.78,214.96,214.93,6.50304142]
[1756433419123,0.1,214.96,214.95,6.50304142]
[1756433419623,0.1,214.96,214.95,32.50304142]
[1756433421218,0.1,214.96,214.95,26.0]
[1756433421417,0.1,214.96,214.95,32.50304142]
[1756433421619,0.1,214.96,214.95,26.0]
[1756433421828,0.1,214.96,214.94,6.50304142]
[1756433422027,0.78,214.96,214.93,87.20304142]
[1756433423539,0.68,214.95,214.93,80.7]
[1756433423945,4.752062,214.96,214.93,80.7]
[1756433424116,0.1,214.96,214.95,6.50304142]
[1756433425245,0.1,214.96,214.95,19.19216185]
[1756433425541,0.1,214.96,214.95,25.69520327]
[1756433426327,0.1,214.96,214.95,21.04295857]
[1756433426827,0.1,214.96,214.95,25.69520327]
[1756433428942,0.1,214.96,214.95,21.04295857]
[1756433429441,0.1,214.96,214.95,20.38295857]
[1756433432645,0.1,214.96,214.95,6.50304142]
[1756433432830,0.1,214.96,214.95,26.0]
[1756433433339,11.93509869,214.96,214.91,80.7]
[1756433433542,6.50304142,214.94,214.91,80.7]
[1756433433849,6.50304142,214.95,214.91,80.7]
[1756433434156,0.68,214.95,214.91,80.7]
[1756433434530,4.75205727,214.96,214.91,87.20304142]
[1756433434749,11.93509869,214.96,214.91,87.20304142]
[1756433435150,5.43205727,214.96,214.91,87.20304142]
[1756433435353,11.93509869,214.96,214.91,6.50304142]
[1756433435657,5.43205727,214.96,214.91,6.50304142]
[1756433435851,5.43205727,214.96,214.95,26.0]
[1756433435852,0.1,214.96,214.95,26.0]
[1756433436164,0.1,214.96,214.95,47.04295857]
[1756433437249,0.1,214.96,214.95,51.69520327]
[1756433437767,0.1,214.96,214.95,58.19824469]
[1756433438258,0.06,214.99,214.98,39.87991715]
[1756433438448,0.06,214.99,214.98,83.94295857]
[1756433438846,0.06,214.99,214.98,84.60295857]
[1756433439381,0.06,214.99,214.98,89.25455406]
[1756433440357,0.06,214.99,214.98,103.25455406]
[1756433440739,0.06,214.99,214.98,59.19151264]
[1756433440948,0.06,214.99,214.98,103.25455406]
[1756433441764,0.06,214.99,214.98,65.69455406]
[1756433441962,0.06,214.99,214.98,103.25455406]
[1756433445769,0.06,215.01,214.99,13.87991715]
[1756433446068,0.06,215.01,215.0,57.92295857]
[1756433446250,0.06,215.01,215.0,58.58295857]
[1756433446770,0.06,215.01,215.0,14.53991715]
[1756433446953,0.06,215.01,215.0,60.44710857]
[1756433447353,0.06,215.01,215.0,58.16560768]